[Event "Titled Tuesday Blitz March 22 Late 2022"]
[White "Sailer, Mike"]
[Black "Ansh M Shah"]
[WhiteFideId "2012901"]
[BlackFideId "25033379"]
[WhiteElo "2109"]
[BlackElo "1819"]
[Result "0-1"]
[Round "05"]
[TimeControl "180+1"]
[Date "2022.03.22"]
[WhiteClock "0:00:01"]
[BlackClock "0:00:04"]

1. d4 {[%clk 0:02:59]}  Nf6 {[%clk 0:02:39]} 2. Nf3 {[%clk 0:02:59]}  e6 {[%clk 0:02:38]} 3. Bf4 {[%clk 0:02:59]}  c5 {[%clk 0:02:39]} 4. e3 {[%clk 0:03:00]}  Nc6 {[%clk 0:02:39]} 5. Nbd2 {[%clk 0:03:00]}  Be7 {[%clk 0:02:39]} 6. c3 {[%clk 0:03:00]}  O-O {[%clk 0:02:39]} 7. Bd3 {[%clk 0:03:00]}  h6 {[%clk 0:02:36]} 8. O-O {[%clk 0:02:58]}  Nh5 {[%clk 0:02:36]} 9. Re1 {[%clk 0:02:51]}  Nxf4 {[%clk 0:02:32]} 10. exf4 {[%clk 0:02:50]}  cxd4 {[%clk 0:02:32]} 11. cxd4 {[%clk 0:02:50]}  Bf6 {[%clk 0:02:31]} 12. Nb3 {[%clk 0:02:43]}  d6 {[%clk 0:02:29]} 13. Qe2 {[%clk 0:02:17]}  Re8 {[%clk 0:02:26]} 14. Rad1 {[%clk 0:02:15]}  Bd7 {[%clk 0:02:14]} 15. Bb1 {[%clk 0:02:02]}  Nb4 {[%clk 0:02:08]} 16. a3 {[%clk 0:01:51]}  Nd5 {[%clk 0:02:08]} 17. g3 {[%clk 0:01:51]}  Ba4 {[%clk 0:02:05]} 18. Qd3 {[%clk 0:01:44]}  g6 {[%clk 0:02:04]} 19. Rd2 {[%clk 0:01:39]}  Qb6 {[%clk 0:01:58]} 20. Nc1 {[%clk 0:01:37]}  Rac8 {[%clk 0:01:58]} 21. Ne2 {[%clk 0:01:35]}  Qb3 {[%clk 0:01:53]} 22. Qxb3 {[%clk 0:01:31]}  Bxb3 {[%clk 0:01:53]} 23. Nc1 {[%clk 0:01:25]}  Ba4 {[%clk 0:01:47]} 24. Be4 {[%clk 0:01:20]}  Bc6 {[%clk 0:01:42]} 25. Nd3 {[%clk 0:01:14]}  a5 {[%clk 0:01:37]} 26. b4 {[%clk 0:00:58]}  axb4 {[%clk 0:01:35]} 27. Nxb4 {[%clk 0:00:58]}  Nxb4 {[%clk 0:01:35]} 28. axb4 {[%clk 0:00:58]}  Bxe4 {[%clk 0:01:35]} 29. Rxe4 {[%clk 0:00:58]}  Rc4 {[%clk 0:01:36]} 30. Rb2 {[%clk 0:00:52]}  Ra8 {[%clk 0:01:26]} 31. b5 {[%clk 0:00:41]}  b6 {[%clk 0:00:43]} 32. g4 {[%clk 0:00:30]}  Kf8 {[%clk 0:00:32]} 33. f5 {[%clk 0:00:30]}  d5 {[%clk 0:00:15]} 34. Re1 {[%clk 0:00:23]}  exf5 {[%clk 0:00:12]} 35. gxf5 {[%clk 0:00:21]}  g5 {[%clk 0:00:12]} 36. Ne5 {[%clk 0:00:18]}  Rxd4 {[%clk 0:00:12]} 37. Nd7+ {[%clk 0:00:17]}  Kg7 {[%clk 0:00:13]} 38. Nxb6 {[%clk 0:00:15]}  Rb8 {[%clk 0:00:12]} 39. Nd7 {[%clk 0:00:15]}  Rb7 {[%clk 0:00:12]} 40. Nxf6 {[%clk 0:00:15]}  Kxf6 {[%clk 0:00:13]} 41. Reb1 {[%clk 0:00:14]}  Kxf5 {[%clk 0:00:13]} 42. b6 {[%clk 0:00:14]}  Rc4 {[%clk 0:00:13]} 43. Rb5 {[%clk 0:00:14]}  Ke6 {[%clk 0:00:13]} 44. Re1+ {[%clk 0:00:11]}  Kd6 {[%clk 0:00:13]} 45. Rd1 {[%clk 0:00:10]}  Rc5 {[%clk 0:00:14]} 46. Rb4 {[%clk 0:00:07]}  Kc6 {[%clk 0:00:14]} 47. Re1 {[%clk 0:00:02]}  Rxb6 {[%clk 0:00:13]} 48. Ra4 {[%clk 0:00:01]}  Kd6 {[%clk 0:00:10]} 49. Ra7 {[%clk 0:00:01]}  Rc7 {[%clk 0:00:05]} 50. Ra8 {[%clk 0:00:01]}  Rd7 {[%clk 0:00:04]} 0-1


[Site "https://www.chess.com"]

[Event "Titled Tuesday Blitz March 22 Late 2022"]
[White "Sanal, Vahap"]
[Black "Dilanyan, Grigor"]
[WhiteFideId "6300545"]
[BlackFideId "13303570"]
[WhiteElo "2603"]
[BlackElo "2279"]
[Result "1-0"]
[Round "05"]
[TimeControl "180+1"]
[Date "2022.03.22"]
[WhiteClock "0:01:28"]
[BlackClock "0:00:07"]

1. e4 {[%clk 0:03:00]}  c6 {[%clk 0:03:00]} 2. d3 {[%clk 0:02:59]}  d5 {[%clk 0:03:00]} 3. Nd2 {[%clk 0:03:00]}  e5 {[%clk 0:03:00]} 4. g3 {[%clk 0:03:00]}  Nf6 {[%clk 0:02:59]} 5. Bg2 {[%clk 0:03:00]}  Nbd7 {[%clk 0:02:59]} 6. Ngf3 {[%clk 0:03:01]}  Be7 {[%clk 0:02:53]} 7. O-O {[%clk 0:03:01]}  O-O {[%clk 0:02:54]} 8. Re1 {[%clk 0:02:59]}  dxe4 {[%clk 0:02:53]} 9. Nxe4 {[%clk 0:02:56]}  Nxe4 {[%clk 0:02:53]} 10. dxe4 {[%clk 0:02:57]}  Qc7 {[%clk 0:02:51]} 11. b3 {[%clk 0:02:53]}  Nc5 {[%clk 0:02:48]} 12. Bb2 {[%clk 0:02:52]}  f6 {[%clk 0:02:48]} 13. Nh4 {[%clk 0:02:50]}  Rd8 {[%clk 0:02:47]} 14. Qe2 {[%clk 0:02:49]}  Be6 {[%clk 0:02:45]} 15. Nf5 {[%clk 0:02:46]}  Bf8 {[%clk 0:02:46]} 16. h4 {[%clk 0:02:40]}  Kh8 {[%clk 0:02:46]} 17. h5 {[%clk 0:02:40]}  a5 {[%clk 0:02:47]} 18. a3 {[%clk 0:02:34]}  a4 {[%clk 0:02:46]} 19. b4 {[%clk 0:02:34]}  Nd7 {[%clk 0:02:46]} 20. Kh2 {[%clk 0:02:28]}  Nb6 {[%clk 0:02:45]} 21. Bc3 {[%clk 0:02:23]}  Nc4 {[%clk 0:02:44]} 22. Qg4 {[%clk 0:02:20]}  Qf7 {[%clk 0:02:44]} 23. f4 {[%clk 0:02:18]}  Rd7 {[%clk 0:02:41]} 24. Qh4 {[%clk 0:02:05]}  Rad8 {[%clk 0:02:38]} 25. Re2 {[%clk 0:02:02]}  Rd1 {[%clk 0:02:34]} 26. Rxd1 {[%clk 0:02:02]}  Rxd1 {[%clk 0:02:34]} 27. fxe5 {[%clk 0:02:00]}  Nxe5 {[%clk 0:02:23]} 28. Bxe5 {[%clk 0:01:58]}  fxe5 {[%clk 0:02:24]} 29. Rf2 {[%clk 0:01:59]}  h6 {[%clk 0:01:36]} 30. Qg4 {[%clk 0:01:40]}  Rd8 {[%clk 0:01:25]} 31. Qe2 {[%clk 0:01:39]}  Qf6 {[%clk 0:01:11]} 32. Nh4 {[%clk 0:01:37]}  Qg5 {[%clk 0:01:10]} 33. Ng6+ {[%clk 0:01:37]}  Kg8 {[%clk 0:01:10]} 34. Bh3 {[%clk 0:01:36]}  Ba2 {[%clk 0:00:32]} 35. c4 {[%clk 0:01:33]}  Bb1 {[%clk 0:00:15]} 36. Be6+ {[%clk 0:01:32]}  Kh7 {[%clk 0:00:16]} 37. Nxf8+ {[%clk 0:01:32]}  Kh8 {[%clk 0:00:13]} 38. Ng6+ {[%clk 0:01:32]}  Kh7 {[%clk 0:00:14]} 39. Bf5 {[%clk 0:01:30]}  Bd3 {[%clk 0:00:10]} 40. Nxe5+ {[%clk 0:01:27]}  Qxf5 {[%clk 0:00:09]} 41. Nxd3 {[%clk 0:01:27]}  Qg5 {[%clk 0:00:08]} 42. Nf4 {[%clk 0:01:27]}  Re8 {[%clk 0:00:07]} 43. e5 {[%clk 0:01:28]}  Rxe5 {[%clk 0:00:08]} 44. Qd3+ {[%clk 0:01:29]}  Kh8 {[%clk 0:00:07]} 45. Ng6+ {[%clk 0:01:28]}  Kg8 {[%clk 0:00:07]} 46. Rf8+ {[%clk 0:01:28]} 1-0


[Site "https://www.chess.com"]

[Event "Titled Tuesday Blitz March 22 Late 2022"]
[White "Sarana, Alexey"]
[Black "Ibarra Jerez, Jose Carlos"]
[WhiteFideId "24133795"]
[BlackFideId "2226332"]
[WhiteElo "2666"]
[BlackElo "2626"]
[Result "1-0"]
[Round "05"]
[TimeControl "180+1"]
[Date "2022.03.22"]
[WhiteClock "0:00:44"]
[BlackClock "0:00:01"]

1. d4 {[%clk 0:02:57]}  d6 {[%clk 0:02:58]} 2. e4 {[%clk 0:02:56]}  Nf6 {[%clk 0:02:58]} 3. Nc3 {[%clk 0:02:57]}  e5 {[%clk 0:02:58]} 4. dxe5 {[%clk 0:02:57]}  dxe5 {[%clk 0:02:58]} 5. Qxd8+ {[%clk 0:02:58]}  Kxd8 {[%clk 0:02:58]} 6. Bc4 {[%clk 0:02:59]}  Ke8 {[%clk 0:02:57]} 7. f4 {[%clk 0:02:58]}  Bb4 {[%clk 0:02:28]} 8. Bd3 {[%clk 0:02:57]}  Nc6 {[%clk 0:02:19]} 9. Nf3 {[%clk 0:02:56]}  Bg4 {[%clk 0:02:11]} 10. fxe5 {[%clk 0:02:56]}  Bxc3+ {[%clk 0:02:06]} 11. bxc3 {[%clk 0:02:55]}  Nd7 {[%clk 0:02:06]} 12. Bf4 {[%clk 0:02:53]}  Bxf3 {[%clk 0:02:05]} 13. gxf3 {[%clk 0:02:54]}  Ndxe5 {[%clk 0:02:06]} 14. Be2 {[%clk 0:02:54]}  Ke7 {[%clk 0:01:46]} 15. h4 {[%clk 0:02:53]}  f6 {[%clk 0:01:40]} 16. h5 {[%clk 0:02:52]}  g5 {[%clk 0:01:38]} 17. Be3 {[%clk 0:02:51]}  b6 {[%clk 0:01:35]} 18. Rg1 {[%clk 0:02:45]}  Rhg8 {[%clk 0:01:29]} 19. Rd1 {[%clk 0:02:42]}  Rad8 {[%clk 0:01:29]} 20. Rd5 {[%clk 0:02:40]}  Na5 {[%clk 0:01:14]} 21. Rxd8 {[%clk 0:01:36]}  Rxd8 {[%clk 0:01:11]} 22. f4 {[%clk 0:01:35]}  gxf4 {[%clk 0:01:10]} 23. Bxf4 {[%clk 0:01:34]}  Kf7 {[%clk 0:01:02]} 24. Bxe5 {[%clk 0:01:34]}  fxe5 {[%clk 0:01:02]} 25. h6 {[%clk 0:01:34]}  Kf6 {[%clk 0:00:36]} 26. Rg7 {[%clk 0:01:34]}  Rh8 {[%clk 0:00:33]} 27. a4 {[%clk 0:01:10]}  Nb7 {[%clk 0:00:33]} 28. Rxc7 {[%clk 0:01:09]}  Nc5 {[%clk 0:00:33]} 29. Rxa7 {[%clk 0:01:06]}  Nxe4 {[%clk 0:00:32]} 30. Rb7 {[%clk 0:01:04]}  Nxc3 {[%clk 0:00:31]} 31. Rxb6+ {[%clk 0:01:04]}  Kg5 {[%clk 0:00:32]} 32. a5 {[%clk 0:01:05]}  Nxe2 {[%clk 0:00:20]} 33. Kxe2 {[%clk 0:01:05]}  Rc8 {[%clk 0:00:21]} 34. Kd3 {[%clk 0:01:01]}  e4+ {[%clk 0:00:21]} 35. Kxe4 {[%clk 0:00:53]}  Rxc2 {[%clk 0:00:21]} 36. a6 {[%clk 0:00:53]}  Rc5 {[%clk 0:00:20]} 37. Kd4 {[%clk 0:00:52]}  Rc7 {[%clk 0:00:14]} 38. Kd5 {[%clk 0:00:48]}  Kh5 {[%clk 0:00:12]} 39. Rc6 {[%clk 0:00:48]}  Rd7+ {[%clk 0:00:10]} 40. Kc5 {[%clk 0:00:48]}  Rd1 {[%clk 0:00:07]} 41. Kb6 {[%clk 0:00:48]}  Rb1+ {[%clk 0:00:04]} 42. Kc7 {[%clk 0:00:49]}  Ra1 {[%clk 0:00:04]} 43. Kb7 {[%clk 0:00:49]}  Rb1+ {[%clk 0:00:04]} 44. Rb6 {[%clk 0:00:50]}  Rd1 {[%clk 0:00:02]} 45. a7 {[%clk 0:00:51]}  Rd7+ {[%clk 0:00:02]} 46. Ka6 {[%clk 0:00:51]}  Rd8 {[%clk 0:00:02]} 47. Rb8 {[%clk 0:00:51]}  Rd1 {[%clk 0:00:03]} 48. Rb5+ {[%clk 0:00:46]}  Kxh6 {[%clk 0:00:02]} 49. a8=Q {[%clk 0:00:47]}  Ra1+ {[%clk 0:00:02]} 50. Ra5 {[%clk 0:00:48]}  Rg1 {[%clk 0:00:01]} 51. Qf8+ {[%clk 0:00:45]}  Rg7 {[%clk 0:00:01]} 52. Rf5 {[%clk 0:00:43]}  Kg6 {[%clk 0:00:01]} 53. Qf6# {[%clk 0:00:44]} 1-0


[Site "https://www.chess.com"]

[Event "Titled Tuesday Blitz March 22 Late 2022"]
[White "Schuster, Karsten"]
[Black "Bachmann, Axel"]
[WhiteFideId "4611071"]
[BlackFideId "3700488"]
[WhiteElo "2367"]
[BlackElo "2587"]
[Result "1/2-1/2"]
[Round "05"]
[TimeControl "180+1"]
[Date "2022.03.22"]
[WhiteClock "0:00:19"]
[BlackClock "0:00:04"]

1. d4 {[%clk 0:03:00]}  Nf6 {[%clk 0:02:55]} 2. c4 {[%clk 0:03:00]}  g6 {[%clk 0:02:55]} 3. Nc3 {[%clk 0:03:00]}  Bg7 {[%clk 0:02:53]} 4. e4 {[%clk 0:03:00]}  d6 {[%clk 0:02:53]} 5. Be2 {[%clk 0:03:01]}  O-O {[%clk 0:02:53]} 6. Bg5 {[%clk 0:03:01]}  Na6 {[%clk 0:02:33]} 7. f4 {[%clk 0:03:00]}  c6 {[%clk 0:02:23]} 8. Qd2 {[%clk 0:02:59]}  d5 {[%clk 0:02:21]} 9. exd5 {[%clk 0:02:55]}  cxd5 {[%clk 0:02:21]} 10. Bxf6 {[%clk 0:02:56]}  Bxf6 {[%clk 0:02:18]} 11. Nxd5 {[%clk 0:02:56]}  Bg7 {[%clk 0:02:16]} 12. Nf3 {[%clk 0:02:54]}  Be6 {[%clk 0:02:01]} 13. Ne3 {[%clk 0:02:52]}  Rc8 {[%clk 0:01:57]} 14. b3 {[%clk 0:02:52]}  Qc7 {[%clk 0:01:43]} 15. Ne5 {[%clk 0:02:47]}  Rfd8 {[%clk 0:01:41]} 16. Rd1 {[%clk 0:02:44]}  Nc5 {[%clk 0:01:29]} 17. O-O {[%clk 0:02:30]}  Nd7 {[%clk 0:01:20]} 18. Qb2 {[%clk 0:02:17]}  Qb6 {[%clk 0:01:11]} 19. Kh1 {[%clk 0:01:47]}  Nxe5 {[%clk 0:01:08]} 20. fxe5 {[%clk 0:01:46]}  a5 {[%clk 0:00:43]} 21. Nd5 {[%clk 0:01:42]}  Bxd5 {[%clk 0:00:38]} 22. cxd5 {[%clk 0:01:43]}  Rxd5 {[%clk 0:00:37]} 23. Qa3 {[%clk 0:01:26]}  e6 {[%clk 0:00:33]} 24. Qe7 {[%clk 0:01:18]}  Qc7 {[%clk 0:00:25]} 25. Qxc7 {[%clk 0:01:18]}  Rxc7 {[%clk 0:00:25]} 26. Bc4 {[%clk 0:01:18]}  Rd8 {[%clk 0:00:23]} 27. a4 {[%clk 0:01:15]}  Rcd7 {[%clk 0:00:22]} 28. d5 {[%clk 0:01:10]}  Bxe5 {[%clk 0:00:19]} 29. Rde1 {[%clk 0:01:04]}  exd5 {[%clk 0:00:19]} 30. Rxe5 {[%clk 0:01:00]}  dxc4 {[%clk 0:00:20]} 31. bxc4 {[%clk 0:01:00]}  Rd1 {[%clk 0:00:19]} 32. Kg1 {[%clk 0:00:59]}  Rxf1+ {[%clk 0:00:18]} 33. Kxf1 {[%clk 0:01:00]}  Rd4 {[%clk 0:00:19]} 34. Rxa5 {[%clk 0:00:59]}  Rxc4 {[%clk 0:00:19]} 35. Rb5 {[%clk 0:00:58]}  Rc7 {[%clk 0:00:18]} 36. a5 {[%clk 0:00:56]}  Kg7 {[%clk 0:00:18]} 37. h4 {[%clk 0:00:55]}  Re7 {[%clk 0:00:18]} 38. g3 {[%clk 0:00:54]}  h5 {[%clk 0:00:18]} 39. Kf2 {[%clk 0:00:54]}  Kf6 {[%clk 0:00:17]} 40. Kf3 {[%clk 0:00:54]}  Ke6 {[%clk 0:00:16]} 41. Rb6+ {[%clk 0:00:54]}  Kd5 {[%clk 0:00:16]} 42. a6 {[%clk 0:00:54]}  bxa6 {[%clk 0:00:15]} 43. Rxa6 {[%clk 0:00:54]}  Ke5 {[%clk 0:00:14]} 44. Ra5+ {[%clk 0:00:54]}  Kf6 {[%clk 0:00:14]} 45. Ra6+ {[%clk 0:00:53]}  Re6 {[%clk 0:00:15]} 46. Ra5 {[%clk 0:00:53]}  Rb6 {[%clk 0:00:15]} 47. Kf4 {[%clk 0:00:53]}  Rb4+ {[%clk 0:00:15]} 48. Kf3 {[%clk 0:00:53]}  Rb6 {[%clk 0:00:15]} 49. Kf4 {[%clk 0:00:53]}  Rc6 {[%clk 0:00:16]} 50. Rb5 {[%clk 0:00:52]}  Ke6 {[%clk 0:00:15]} 51. Ra5 {[%clk 0:00:52]}  Rd6 {[%clk 0:00:15]} 52. Rb5 {[%clk 0:00:52]}  f6 {[%clk 0:00:14]} 53. Ra5 {[%clk 0:00:51]}  Rb6 {[%clk 0:00:14]} 54. Rc5 {[%clk 0:00:49]}  Ra6 {[%clk 0:00:14]} 55. Rb5 {[%clk 0:00:49]}  Ra4+ {[%clk 0:00:14]} 56. Kf3 {[%clk 0:00:49]}  Ra3+ {[%clk 0:00:14]} 57. Kf4 {[%clk 0:00:49]}  Ra4+ {[%clk 0:00:14]} 58. Kf3 {[%clk 0:00:50]}  Ra7 {[%clk 0:00:15]} 59. Rb6+ {[%clk 0:00:47]}  Kf7 {[%clk 0:00:16]} 60. Kf4 {[%clk 0:00:46]}  Kg7 {[%clk 0:00:16]} 61. Rc6 {[%clk 0:00:45]}  Rb7 {[%clk 0:00:16]} 62. Ra6 {[%clk 0:00:45]}  Rf7 {[%clk 0:00:15]} 63. Rb6 {[%clk 0:00:45]}  Rd7 {[%clk 0:00:16]} 64. Ra6 {[%clk 0:00:45]}  Rc7 {[%clk 0:00:16]} 65. Rb6 {[%clk 0:00:45]}  Ra7 {[%clk 0:00:17]} 66. Rc6 {[%clk 0:00:45]}  Ra4+ {[%clk 0:00:16]} 67. Kf3 {[%clk 0:00:45]}  Ra5 {[%clk 0:00:17]} 68. Kf4 {[%clk 0:00:44]}  Rf5+ {[%clk 0:00:17]} 69. Ke4 {[%clk 0:00:44]}  Rf1 {[%clk 0:00:16]} 70. Ra6 {[%clk 0:00:42]}  g5 {[%clk 0:00:13]} 71. hxg5 {[%clk 0:00:41]}  fxg5 {[%clk 0:00:14]} 72. Ra7+ {[%clk 0:00:34]}  Kg6 {[%clk 0:00:14]} 73. Ra6+ {[%clk 0:00:34]}  Rf6 {[%clk 0:00:14]} 74. Ra5 {[%clk 0:00:33]}  h4 {[%clk 0:00:11]} 75. gxh4 {[%clk 0:00:32]}  gxh4 {[%clk 0:00:12]} 76. Ra8 {[%clk 0:00:30]}  Kh5 {[%clk 0:00:11]} 77. Rg8 {[%clk 0:00:29]}  h3 {[%clk 0:00:10]} 78. Ke3 {[%clk 0:00:27]}  Kh4 {[%clk 0:00:10]} 79. Ke2 {[%clk 0:00:25]}  h2 {[%clk 0:00:08]} 80. Rh8+ {[%clk 0:00:25]}  Kg3 {[%clk 0:00:08]} 81. Rg8+ {[%clk 0:00:25]}  Kh3 {[%clk 0:00:07]} 82. Rh8+ {[%clk 0:00:25]}  Kg2 {[%clk 0:00:07]} 83. Rg8+ {[%clk 0:00:26]}  Kh1 {[%clk 0:00:07]} 84. Ke1 {[%clk 0:00:24]}  Rf5 {[%clk 0:00:06]} 85. Ke2 {[%clk 0:00:24]}  Rf4 {[%clk 0:00:06]} 86. Ke1 {[%clk 0:00:21]}  Rf7 {[%clk 0:00:07]} 87. Ke2 {[%clk 0:00:21]}  Rf6 {[%clk 0:00:06]} 88. Ke1 {[%clk 0:00:22]}  Ra6 {[%clk 0:00:04]} 89. Kf2 {[%clk 0:00:21]}  Ra2+ {[%clk 0:00:04]} 90. Kf1 {[%clk 0:00:20]}  Ra1+ {[%clk 0:00:05]} 91. Kf2 {[%clk 0:00:20]}  Rg1 {[%clk 0:00:05]} 92. Rh8 {[%clk 0:00:20]}  Rg2+ {[%clk 0:00:06]} 93. Kf1 {[%clk 0:00:19]}  Rg3 {[%clk 0:00:06]} 94. Kf2 {[%clk 0:00:19]}  Rg2+ {[%clk 0:00:04]} 95. Kf1 {[%clk 0:00:19]}  Rg4 {[%clk 0:00:05]} 96. Kf2 {[%clk 0:00:19]}  Rf4+ {[%clk 0:00:05]} 97. Kg3 {[%clk 0:00:18]}  Rf6 {[%clk 0:00:03]} 98. Rxh2+ {[%clk 0:00:18]}  Kg1 {[%clk 0:00:03]} 99. Rg2+ {[%clk 0:00:18]}  Kf1 {[%clk 0:00:02]} 100. Ra2 {[%clk 0:00:18]}  Rg6+ {[%clk 0:00:02]} 101. Kf3 {[%clk 0:00:18]}  Rf6+ {[%clk 0:00:03]} 102. Kg3 {[%clk 0:00:18]}  Rg6+ {[%clk 0:00:03]} 103. Kf3 {[%clk 0:00:18]}  Rf6+ {[%clk 0:00:04]} 104. Kg3 {[%clk 0:00:19]} 1/2-1/2


[Site "https://www.chess.com"]

[Event "Titled Tuesday Blitz March 22 Late 2022"]
[White "Sharafiev, Azat"]
[Black "Holt, Conrad"]
[WhiteFideId "4186214"]
[BlackFideId "2034387"]
[WhiteElo "2299"]
[BlackElo "2586"]
[Result "0-1"]
[Round "05"]
[TimeControl "180+1"]
[Date "2022.03.22"]
[WhiteClock "0:00:04"]
[BlackClock "0:00:17"]

1. d4 {[%clk 0:03:00]}  d5 {[%clk 0:03:00]} 2. Nf3 {[%clk 0:02:59]}  Nf6 {[%clk 0:03:00]} 3. c3 {[%clk 0:02:59]}  Bf5 {[%clk 0:02:59]} 4. Qb3 {[%clk 0:02:59]}  Qc8 {[%clk 0:02:56]} 5. c4 {[%clk 0:02:59]}  e6 {[%clk 0:02:55]} 6. Nc3 {[%clk 0:02:56]}  dxc4 {[%clk 0:02:51]} 7. Qxc4 {[%clk 0:02:56]}  Nbd7 {[%clk 0:02:50]} 8. Bf4 {[%clk 0:02:52]}  c6 {[%clk 0:02:44]} 9. g3 {[%clk 0:02:49]}  Nd5 {[%clk 0:02:35]} 10. Bd2 {[%clk 0:02:38]}  Nb4 {[%clk 0:02:30]} 11. Rc1 {[%clk 0:02:28]}  Nc2+ {[%clk 0:02:26]} 12. Kd1 {[%clk 0:02:28]}  Nb4 {[%clk 0:02:24]} 13. e4 {[%clk 0:02:25]}  Bg4 {[%clk 0:02:23]} 14. Be2 {[%clk 0:02:26]}  Be7 {[%clk 0:02:18]} 15. a3 {[%clk 0:02:25]}  Na6 {[%clk 0:02:17]} 16. h3 {[%clk 0:02:24]}  Bh5 {[%clk 0:02:15]} 17. b4 {[%clk 0:02:15]}  O-O {[%clk 0:02:12]} 18. Ke1 {[%clk 0:02:10]}  Rd8 {[%clk 0:02:08]} 19. Be3 {[%clk 0:02:08]}  Nc7 {[%clk 0:02:03]} 20. g4 {[%clk 0:01:51]}  Bg6 {[%clk 0:02:02]} 21. h4 {[%clk 0:01:52]}  h5 {[%clk 0:01:48]} 22. Ng5 {[%clk 0:01:46]}  Nf6 {[%clk 0:01:43]} 23. gxh5 {[%clk 0:01:39]}  Bxh5 {[%clk 0:01:43]} 24. Bxh5 {[%clk 0:01:37]}  Nxh5 {[%clk 0:01:43]} 25. Qe2 {[%clk 0:01:37]}  g6 {[%clk 0:01:41]} 26. Rg1 {[%clk 0:01:37]}  Kf8 {[%clk 0:01:29]} 27. Qf3 {[%clk 0:01:18]}  Bxg5 {[%clk 0:01:16]} 28. hxg5 {[%clk 0:01:12]}  e5 {[%clk 0:00:49]} 29. dxe5 {[%clk 0:01:06]}  Qe6 {[%clk 0:00:49]} 30. Bc5+ {[%clk 0:01:05]}  Kg8 {[%clk 0:00:42]} 31. Rh1 {[%clk 0:00:14]}  Qxe5 {[%clk 0:00:34]} 32. Rxh5 {[%clk 0:00:14]}  gxh5 {[%clk 0:00:34]} 33. Qxh5 {[%clk 0:00:15]}  Ne6 {[%clk 0:00:30]} 34. Be3 {[%clk 0:00:11]}  Rd3 {[%clk 0:00:29]} 35. Ne2 {[%clk 0:00:06]}  Qxe4 {[%clk 0:00:22]} 36. Ng3 {[%clk 0:00:04]}  Rxe3+ {[%clk 0:00:20]} 37. fxe3 {[%clk 0:00:04]}  Qxe3+ {[%clk 0:00:21]} 38. Ne2 {[%clk 0:00:05]}  Nf4 {[%clk 0:00:21]} 39. Qg4 {[%clk 0:00:04]}  Nxe2 {[%clk 0:00:17]} 40. Qxe2 {[%clk 0:00:04]}  Qxc1+ {[%clk 0:00:17]} 0-1


[Site "https://www.chess.com"]

[Event "Titled Tuesday Blitz March 22 Late 2022"]
[White "Smirnov, Pavel"]
[Black "Hamitevici, Vladimir"]
[WhiteFideId "4123425"]
[BlackFideId "13902393"]
[WhiteElo "2545"]
[BlackElo "2359"]
[Result "1/2-1/2"]
[Round "05"]
[TimeControl "180+1"]
[Date "2022.03.22"]
[WhiteClock "0:00:11"]
[BlackClock "0:00:08"]

1. d4 {[%clk 0:02:57]}  Nf6 {[%clk 0:02:57]} 2. c4 {[%clk 0:02:55]}  c5 {[%clk 0:02:56]} 3. d5 {[%clk 0:02:55]}  b5 {[%clk 0:02:56]} 4. cxb5 {[%clk 0:02:55]}  a6 {[%clk 0:02:56]} 5. e3 {[%clk 0:02:55]}  axb5 {[%clk 0:02:50]} 6. Bxb5 {[%clk 0:02:55]}  Bb7 {[%clk 0:02:48]} 7. Nc3 {[%clk 0:02:53]}  Qa5 {[%clk 0:02:47]} 8. Bd2 {[%clk 0:02:51]}  Qb6 {[%clk 0:02:47]} 9. Nf3 {[%clk 0:02:50]}  Nxd5 {[%clk 0:02:45]} 10. Nxd5 {[%clk 0:02:50]}  Bxd5 {[%clk 0:02:46]} 11. a4 {[%clk 0:02:50]}  e6 {[%clk 0:02:43]} 12. O-O {[%clk 0:02:48]}  Be7 {[%clk 0:02:39]} 13. Bc3 {[%clk 0:02:48]}  O-O {[%clk 0:02:37]} 14. Nd2 {[%clk 0:02:46]}  f5 {[%clk 0:02:29]} 15. f3 {[%clk 0:02:43]}  Qb7 {[%clk 0:02:16]} 16. Qe2 {[%clk 0:02:33]}  Bc6 {[%clk 0:02:09]} 17. e4 {[%clk 0:02:28]}  Bxb5 {[%clk 0:02:03]} 18. axb5 {[%clk 0:02:25]}  Rxa1 {[%clk 0:02:03]} 19. Rxa1 {[%clk 0:02:24]}  fxe4 {[%clk 0:01:40]} 20. fxe4 {[%clk 0:02:12]}  d5 {[%clk 0:01:04]} 21. exd5 {[%clk 0:02:08]}  exd5 {[%clk 0:01:05]} 22. Qe6+ {[%clk 0:02:05]}  Kh8 {[%clk 0:01:05]} 23. Nf3 {[%clk 0:01:55]}  d4 {[%clk 0:01:01]} 24. Bd2 {[%clk 0:01:46]}  Bf6 {[%clk 0:00:54]} 25. Qd6 {[%clk 0:01:32]}  Be7 {[%clk 0:00:44]} 26. Qe6 {[%clk 0:01:31]}  Bf6 {[%clk 0:00:40]} 27. Ra5 {[%clk 0:00:48]}  Qd7 {[%clk 0:00:27]} 28. Qxd7 {[%clk 0:00:41]}  Nxd7 {[%clk 0:00:28]} 29. Ra7 {[%clk 0:00:41]}  Ne5 {[%clk 0:00:21]} 30. Nxe5 {[%clk 0:00:40]}  Bxe5 {[%clk 0:00:22]} 31. Re7 {[%clk 0:00:38]}  Bf6 {[%clk 0:00:21]} 32. Rc7 {[%clk 0:00:33]}  d3 {[%clk 0:00:21]} 33. g3 {[%clk 0:00:20]}  Bxb2 {[%clk 0:00:09]} 34. b6 {[%clk 0:00:19]}  Be5 {[%clk 0:00:08]} 35. Rc6 {[%clk 0:00:18]}  Rb8 {[%clk 0:00:04]} 36. Kg2 {[%clk 0:00:18]}  h6 {[%clk 0:00:04]} 37. Kf3 {[%clk 0:00:12]}  c4 {[%clk 0:00:03]} 38. Rxc4 {[%clk 0:00:11]}  Rxb6 {[%clk 0:00:03]} 39. Ke4 {[%clk 0:00:12]}  Bf6 {[%clk 0:00:03]} 40. Kxd3 {[%clk 0:00:12]}  Rd6+ {[%clk 0:00:03]} 41. Ke2 {[%clk 0:00:12]}  Kh7 {[%clk 0:00:04]} 42. Bf4 {[%clk 0:00:12]}  Rd8 {[%clk 0:00:05]} 43. h4 {[%clk 0:00:11]}  Re8+ {[%clk 0:00:05]} 44. Kf3 {[%clk 0:00:11]}  Rd8 {[%clk 0:00:06]} 45. h5 {[%clk 0:00:11]}  Rf8 {[%clk 0:00:06]} 46. Kg4 {[%clk 0:00:11]}  Re8 {[%clk 0:00:06]} 47. Rc7 {[%clk 0:00:11]}  Re7 {[%clk 0:00:06]} 48. Rc6 {[%clk 0:00:10]}  Re8 {[%clk 0:00:06]} 49. Kf5 {[%clk 0:00:10]}  Rf8 {[%clk 0:00:07]} 50. Ke6 {[%clk 0:00:10]}  Re8+ {[%clk 0:00:07]} 51. Kf5 {[%clk 0:00:11]}  Rf8 {[%clk 0:00:08]} 52. Kg4 {[%clk 0:00:11]}  Re8 {[%clk 0:00:08]} 53. Kf5 {[%clk 0:00:11]} 1/2-1/2


[Site "https://www.chess.com"]